[Event "Titled Tuesday Blitz February 22 Late 2022"]
[White "Carlsson, Ludvig"]
[Black "Sorokin, Aleksey"]
[WhiteFideId "1727010"]
[BlackFideId "24176460"]
[WhiteElo "2178"]
[BlackElo "2476"]
[Result "0-1"]
[Round "04"]
[TimeControl "180+1"]
[Date "2022.02.22"]
[WhiteClock "0:00:54"]
[BlackClock "0:00:31"]

1. Nf3 {[%clk 0:03:00]}  Nf6 {[%clk 0:02:58]} 2. c4 {[%clk 0:03:00]}  c5 {[%clk 0:02:57]} 3. g3 {[%clk 0:02:59]}  d5 {[%clk 0:02:57]} 4. cxd5 {[%clk 0:02:59]}  Nxd5 {[%clk 0:02:58]} 5. Bg2 {[%clk 0:02:59]}  Nc6 {[%clk 0:02:58]} 6. d4 {[%clk 0:02:59]}  cxd4 {[%clk 0:02:58]} 7. Nxd4 {[%clk 0:03:00]}  Ndb4 {[%clk 0:02:58]} 8. Nxc6 {[%clk 0:03:00]}  Qxd1+ {[%clk 0:02:58]} 9. Kxd1 {[%clk 0:03:01]}  Nxc6 {[%clk 0:02:57]} 10. Nc3 {[%clk 0:02:56]}  Bf5 {[%clk 0:02:56]} 11. f4 {[%clk 0:02:54]}  e5 {[%clk 0:02:49]} 12. Be3 {[%clk 0:02:53]}  Bb4 {[%clk 0:02:40]} 13. Rc1 {[%clk 0:02:52]}  O-O {[%clk 0:02:34]} 14. Ke1 {[%clk 0:02:51]}  exf4 {[%clk 0:02:32]} 15. gxf4 {[%clk 0:02:52]}  Rfe8 {[%clk 0:02:30]} 16. Kf2 {[%clk 0:02:53]}  h5 {[%clk 0:01:51]} 17. Nb5 {[%clk 0:02:49]}  Re7 {[%clk 0:01:42]} 18. Nd4 {[%clk 0:02:33]}  Nxd4 {[%clk 0:01:35]} 19. Bxd4 {[%clk 0:02:34]}  Bd2 {[%clk 0:01:34]} 20. Rc4 {[%clk 0:02:27]}  Bxf4 {[%clk 0:01:31]} 21. Bc5 {[%clk 0:02:25]}  Rc7 {[%clk 0:01:28]} 22. Rxf4 {[%clk 0:02:20]}  Rxc5 {[%clk 0:01:28]} 23. Rd1 {[%clk 0:02:03]}  Re8 {[%clk 0:01:24]} 24. Rd5 {[%clk 0:02:01]}  Rxd5 {[%clk 0:01:21]} 25. Bxd5 {[%clk 0:02:02]}  Be6 {[%clk 0:01:22]} 26. Bxe6 {[%clk 0:01:57]}  Rxe6 {[%clk 0:01:23]} 27. Rc4 {[%clk 0:01:54]}  g6 {[%clk 0:01:11]} 28. Kf3 {[%clk 0:01:49]}  a6 {[%clk 0:01:10]} 29. e4 {[%clk 0:01:48]}  Kg7 {[%clk 0:01:08]} 30. Rc7 {[%clk 0:01:47]}  b5 {[%clk 0:01:07]} 31. b4 {[%clk 0:01:44]}  g5 {[%clk 0:01:07]} 32. h3 {[%clk 0:01:43]}  Kg6 {[%clk 0:01:07]} 33. Ra7 {[%clk 0:01:42]}  f5 {[%clk 0:01:03]} 34. exf5+ {[%clk 0:01:42]}  Kxf5 {[%clk 0:01:04]} 35. Rf7+ {[%clk 0:01:42]}  Ke5 {[%clk 0:01:02]} 36. Rh7 {[%clk 0:01:39]}  Rf6+ {[%clk 0:01:00]} 37. Kg3 {[%clk 0:01:28]}  h4+ {[%clk 0:01:00]} 38. Kg4 {[%clk 0:01:28]}  Rf4+ {[%clk 0:00:59]} 39. Kxg5 {[%clk 0:01:28]}  Rxb4 {[%clk 0:00:59]} 40. Rxh4 {[%clk 0:00:59]}  Rxh4 {[%clk 0:00:37]} 41. Kxh4 {[%clk 0:01:00]}  Kf4 {[%clk 0:00:37]} 42. Kh5 {[%clk 0:00:57]}  Kf5 {[%clk 0:00:37]} 43. Kh4 {[%clk 0:00:53]}  b4 {[%clk 0:00:31]} 44. Kg3 {[%clk 0:00:53]}  a5 {[%clk 0:00:31]} 45. Kf3 {[%clk 0:00:53]}  a4 {[%clk 0:00:31]} 46. Ke3 {[%clk 0:00:53]}  b3 {[%clk 0:00:31]} 47. axb3 {[%clk 0:00:54]}  a3 {[%clk 0:00:31]} 0-1


[Site "https://www.chess.com"]

[Event "Titled Tuesday Blitz February 22 Late 2022"]
[White "Chernomordik, Pavel"]
[Black "Hasangatin, Ramil"]
[WhiteFideId "2804530"]
[BlackFideId "4122160"]
[WhiteElo "2249"]
[BlackElo "2375"]
[Result "0-1"]
[Round "04"]
[TimeControl "180+1"]
[Date "2022.02.23"]
[WhiteClock "0:01:20"]
[BlackClock "0:01:39"]

1. e4 {[%clk 0:03:00]}  d5 {[%clk 0:02:58]} 2. exd5 {[%clk 0:03:00]}  Qxd5 {[%clk 0:02:59]} 3. Nc3 {[%clk 0:02:59]}  Qd6 {[%clk 0:02:59]} 4. Bc4 {[%clk 0:02:58]}  Nf6 {[%clk 0:02:59]} 5. Nf3 {[%clk 0:02:57]}  c6 {[%clk 0:02:59]} 6. Qe2 {[%clk 0:02:57]}  Nbd7 {[%clk 0:02:30]} 7. O-O {[%clk 0:02:50]}  Nb6 {[%clk 0:02:26]} 8. Bb3 {[%clk 0:02:49]}  Nbd5 {[%clk 0:02:26]} 9. d4 {[%clk 0:02:43]}  Bg4 {[%clk 0:02:22]} 10. h3 {[%clk 0:02:38]}  Bh5 {[%clk 0:02:22]} 11. Ne4 {[%clk 0:02:29]}  Nxe4 {[%clk 0:02:21]} 12. Qxe4 {[%clk 0:02:28]}  e6 {[%clk 0:02:12]} 13. Ne5 {[%clk 0:02:18]}  Be7 {[%clk 0:02:11]} 14. c4 {[%clk 0:02:11]}  Nf6 {[%clk 0:02:11]} 15. Qd3 {[%clk 0:02:05]}  Rd8 {[%clk 0:02:11]} 16. Rd1 {[%clk 0:02:01]}  Bxd1 {[%clk 0:02:08]} 17. Qxd1 {[%clk 0:01:50]}  Qxd4 {[%clk 0:02:06]} 18. Qxd4 {[%clk 0:01:40]}  Rxd4 {[%clk 0:02:05]} 19. Be3 {[%clk 0:01:41]}  Rd8 {[%clk 0:01:56]} 20. Bxa7 {[%clk 0:01:40]}  Nd7 {[%clk 0:01:55]} 21. Nxd7 {[%clk 0:01:30]}  Rxd7 {[%clk 0:01:55]} 22. Bb6 {[%clk 0:01:29]}  O-O {[%clk 0:01:50]} 23. Kf1 {[%clk 0:01:25]}  Bf6 {[%clk 0:01:46]} 24. Rb1 {[%clk 0:01:23]}  Rd2 {[%clk 0:01:46]} 25. Bc5 {[%clk 0:01:20]}  Rfd8 {[%clk 0:01:39]} 0-1


[Site "https://www.chess.com"]

[Event "Titled Tuesday Blitz February 22 Late 2022"]
[White "Clawitter, Craig"]
[Black "Salimova, Nurgyul"]
[WhiteFideId "2023105"]
[BlackFideId "2915138"]
[WhiteElo "2217"]
[BlackElo "2185"]
[Result "0-1"]
[Round "04"]
[TimeControl "180+1"]
[Date "2022.02.23"]
[WhiteClock "0:00:05"]
[BlackClock "0:00:22"]

1. e4 {[%clk 0:03:00]}  c6 {[%clk 0:02:58]} 2. Nf3 {[%clk 0:02:59]}  d5 {[%clk 0:02:58]} 3. e5 {[%clk 0:02:59]}  Bg4 {[%clk 0:02:56]} 4. d4 {[%clk 0:03:00]}  e6 {[%clk 0:02:55]} 5. c3 {[%clk 0:03:00]}  Ne7 {[%clk 0:02:46]} 6. Be3 {[%clk 0:02:58]}  Nf5 {[%clk 0:02:45]} 7. Bd3 {[%clk 0:02:55]}  Qb6 {[%clk 0:02:39]} 8. Nbd2 {[%clk 0:02:49]}  Nd7 {[%clk 0:02:27]} 9. O-O {[%clk 0:02:45]}  Nxe3 {[%clk 0:02:22]} 10. fxe3 {[%clk 0:02:44]}  Nxe5 {[%clk 0:02:22]} 11. Be2 {[%clk 0:02:10]}  Nxf3+ {[%clk 0:02:17]} 12. Bxf3 {[%clk 0:02:10]}  Bxf3 {[%clk 0:01:50]} 13. Qxf3 {[%clk 0:02:11]}  f5 {[%clk 0:01:41]} 14. e4 {[%clk 0:01:52]}  dxe4 {[%clk 0:01:30]} 15. Nxe4 {[%clk 0:01:52]}  Be7 {[%clk 0:01:25]} 16. Rae1 {[%clk 0:01:40]}  O-O {[%clk 0:01:24]} 17. Nf2 {[%clk 0:01:26]}  Qxb2 {[%clk 0:01:15]} 18. Rxe6 {[%clk 0:01:23]}  Bf6 {[%clk 0:01:12]} 19. Re2 {[%clk 0:01:05]}  Qb5 {[%clk 0:01:09]} 20. Rfe1 {[%clk 0:01:01]}  Qd5 {[%clk 0:01:04]} 21. Qh3 {[%clk 0:00:31]}  c5 {[%clk 0:00:54]} 22. Nd3 {[%clk 0:00:20]}  cxd4 {[%clk 0:00:50]} 23. Nf4 {[%clk 0:00:20]}  Qd7 {[%clk 0:00:43]} 24. Ne6 {[%clk 0:00:16]}  Rfe8 {[%clk 0:00:37]} 25. Qxf5 {[%clk 0:00:14]}  dxc3 {[%clk 0:00:36]} 26. Re3 {[%clk 0:00:09]}  Bd4 {[%clk 0:00:29]} 27. Nxd4 {[%clk 0:00:08]}  Qxd4 {[%clk 0:00:28]} 28. Qf2 {[%clk 0:00:04]}  Rxe3 {[%clk 0:00:26]} 29. Rxe3 {[%clk 0:00:04]}  Rf8 {[%clk 0:00:23]} 30. Rf3 {[%clk 0:00:04]}  Qxf2+ {[%clk 0:00:22]} 31. Rxf2 {[%clk 0:00:04]}  Rxf2 {[%clk 0:00:21]} 32. Kxf2 {[%clk 0:00:05]}  c2 {[%clk 0:00:22]} 0-1


[Site "https://www.chess.com"]

[Event "Titled Tuesday Blitz February 22 Late 2022"]
[White "Colas, Joshua"]
[Black "Chyngyz, Sultai"]
[WhiteFideId "2044447"]
[BlackFideId "13803158"]
[WhiteElo "2347"]
[BlackElo "1339"]
[Result "1-0"]
[Round "04"]
[TimeControl "180+1"]
[Date "2022.02.23"]
[WhiteClock "0:01:08"]
[BlackClock "0:00:22"]

1. Nf3 {[%clk 0:02:49]}  Nf6 {[%clk 0:03:00]} 2. c4 {[%clk 0:02:46]}  g6 {[%clk 0:03:00]} 3. b3 {[%clk 0:02:46]}  Bg7 {[%clk 0:03:00]} 4. Bb2 {[%clk 0:02:42]}  O-O {[%clk 0:03:00]} 5. g3 {[%clk 0:02:42]}  d6 {[%clk 0:03:01]} 6. d4 {[%clk 0:02:41]}  Nc6 {[%clk 0:03:00]} 7. Bg2 {[%clk 0:02:37]}  Bg4 {[%clk 0:02:54]} 8. O-O {[%clk 0:02:36]}  Qd7 {[%clk 0:02:49]} 9. Re1 {[%clk 0:02:31]}  Bh3 {[%clk 0:02:12]} 10. Bh1 {[%clk 0:02:30]}  h6 {[%clk 0:02:06]} 11. Nc3 {[%clk 0:02:26]}  e5 {[%clk 0:02:02]} 12. dxe5 {[%clk 0:02:24]}  dxe5 {[%clk 0:01:59]} 13. Qxd7 {[%clk 0:02:24]}  Bxd7 {[%clk 0:01:55]} 14. Nd5 {[%clk 0:02:05]}  Nxd5 {[%clk 0:01:47]} 15. cxd5 {[%clk 0:02:05]}  Nb4 {[%clk 0:01:48]} 16. Rac1 {[%clk 0:01:49]}  Nxd5 {[%clk 0:01:35]} 17. Nxe5 {[%clk 0:01:43]}  Be6 {[%clk 0:01:27]} 18. Bxd5 {[%clk 0:01:39]}  Bxd5 {[%clk 0:01:26]} 19. Rxc7 {[%clk 0:01:39]}  Rfe8 {[%clk 0:01:23]} 20. Nd3 {[%clk 0:01:38]}  Bxb2 {[%clk 0:01:22]} 21. Nxb2 {[%clk 0:01:39]}  Rac8 {[%clk 0:01:21]} 22. Rxc8 {[%clk 0:01:35]}  Rxc8 {[%clk 0:01:22]} 23. Nd3 {[%clk 0:01:35]}  Be4 {[%clk 0:01:20]} 24. Rc1 {[%clk 0:01:36]}  Rd8 {[%clk 0:01:17]} 25. Rc3 {[%clk 0:01:35]}  Kg7 {[%clk 0:01:13]} 26. f3 {[%clk 0:01:36]}  Bc6 {[%clk 0:01:12]} 27. Kf2 {[%clk 0:01:35]}  Re8 {[%clk 0:01:04]} 28. e4 {[%clk 0:01:35]}  Rd8 {[%clk 0:01:03]} 29. Ke3 {[%clk 0:01:35]}  Kf6 {[%clk 0:00:55]} 30. a4 {[%clk 0:01:35]}  Re8 {[%clk 0:00:46]} 31. Nb4 {[%clk 0:01:33]}  Bd7 {[%clk 0:00:37]} 32. Nd5+ {[%clk 0:01:19]}  Kg7 {[%clk 0:00:34]} 33. Rc7 {[%clk 0:01:19]}  Be6 {[%clk 0:00:29]} 34. Kd4 {[%clk 0:01:16]}  Rb8 {[%clk 0:00:26]} 35. b4 {[%clk 0:01:13]}  b5 {[%clk 0:00:27]} 36. a5 {[%clk 0:01:09]}  a6 {[%clk 0:00:25]} 37. Rc6 {[%clk 0:01:04]}  Bc8 {[%clk 0:00:25]} 38. Rb6 {[%clk 0:01:01]}  Ra8 {[%clk 0:00:22]} 39. Ne7 {[%clk 0:01:01]}  Bh3 {[%clk 0:00:19]} 40. Nc6 {[%clk 0:01:02]}  Bg2 {[%clk 0:00:18]} 41. f4 {[%clk 0:01:00]}  Re8 {[%clk 0:00:18]} 42. e5 {[%clk 0:01:00]}  Rc8 {[%clk 0:00:14]} 43. Kc5 {[%clk 0:00:59]}  Ra8 {[%clk 0:00:13]} 44. Nb8 {[%clk 0:00:58]}  Bf1 {[%clk 0:00:12]} 45. Nxa6 {[%clk 0:00:58]}  Rc8+ {[%clk 0:00:12]} 46. Rc6 {[%clk 0:00:58]}  Rd8 {[%clk 0:00:12]} 47. Nc7 {[%clk 0:00:58]}  Rd1 {[%clk 0:00:12]} 48. a6 {[%clk 0:00:58]}  Rc1+ {[%clk 0:00:13]} 49. Kb6 {[%clk 0:00:58]}  Ra1 {[%clk 0:00:13]} 50. a7 {[%clk 0:00:59]}  Bg2 {[%clk 0:00:13]} 51. Nxb5 {[%clk 0:00:56]}  Bxc6 {[%clk 0:00:12]} 52. Kxc6 {[%clk 0:00:57]}  Kf8 {[%clk 0:00:12]} 53. Kb7 {[%clk 0:00:57]}  Ke7 {[%clk 0:00:12]} 54. a8=Q {[%clk 0:00:58]}  Rxa8 {[%clk 0:00:13]} 55. Kxa8 {[%clk 0:00:58]}  Kd7 {[%clk 0:00:14]} 56. Nd6 {[%clk 0:00:59]}  Kc6 {[%clk 0:00:14]} 57. Nxf7 {[%clk 0:00:59]}  Kb5 {[%clk 0:00:15]} 58. Nxh6 {[%clk 0:00:58]}  Kxb4 {[%clk 0:00:16]} 59. e6 {[%clk 0:00:58]}  Kc5 {[%clk 0:00:17]} 60. e7 {[%clk 0:00:59]}  Kd6 {[%clk 0:00:17]} 61. e8=Q {[%clk 0:01:00]}  Kd5 {[%clk 0:00:17]} 62. Qe5+ {[%clk 0:01:01]}  Kc4 {[%clk 0:00:18]} 63. Nf7 {[%clk 0:01:01]}  Kd3 {[%clk 0:00:18]} 64. h4 {[%clk 0:01:02]}  g5 {[%clk 0:00:18]} 65. g4 {[%clk 0:01:03]}  gxf4 {[%clk 0:00:19]} 66. h5 {[%clk 0:01:04]}  f3 {[%clk 0:00:20]} 67. h6 {[%clk 0:01:05]}  f2 {[%clk 0:00:20]} 68. Qf4 {[%clk 0:01:05]}  f1=Q {[%clk 0:00:21]} 69. Qxf1+ {[%clk 0:01:06]}  Kd4 {[%clk 0:00:22]} 70. h7 {[%clk 0:01:06]}  Ke4 {[%clk 0:00:22]} 71. h8=Q {[%clk 0:01:07]}  Ke3 {[%clk 0:00:22]} 72. Qe5+ {[%clk 0:01:08]}  Kd2 {[%clk 0:00:22]} 73. Qfe2+ {[%clk 0:01:08]}  Kc1 {[%clk 0:00:22]} 74. Qc3+ {[%clk 0:01:08]}  Kb1 {[%clk 0:00:22]} 75. Qeb2# {[%clk 0:01:08]} 1-0


[Site "https://www.chess.com"]

[Event "Titled Tuesday Blitz February 22 Late 2022"]
[White "Desideri, Ricardo Maruchi"]
[Black "Awoki, Daniel Teidi"]
[WhiteFideId "2110440"]
[BlackFideId "2100827"]
[WhiteElo "1945"]
[BlackElo "2023"]
[Result "1-0"]
[Round "04"]
[TimeControl "180+1"]
[Date "2022.02.23"]
[WhiteClock "0:00:06"]
[BlackClock "0:00:02"]

1. e4 {[%clk 0:03:00]}  c5 {[%clk 0:02:59]} 2. Nf3 {[%clk 0:03:00]}  g6 {[%clk 0:03:00]} 3. d4 {[%clk 0:03:00]}  cxd4 {[%clk 0:03:01]} 4. Nxd4 {[%clk 0:03:01]}  Nc6 {[%clk 0:03:01]} 5. Nc3 {[%clk 0:03:01]}  Bg7 {[%clk 0:03:02]} 6. Be3 {[%clk 0:03:01]}  Nf6 {[%clk 0:03:02]} 7. Bc4 {[%clk 0:03:02]}  Qa5 {[%clk 0:03:01]} 8. Qd2 {[%clk 0:02:58]}  Qb4 {[%clk 0:02:27]} 9. Bb3 {[%clk 0:02:46]}  Nxe4 {[%clk 0:01:53]} 10. Nxc6 {[%clk 0:02:34]}  bxc6 {[%clk 0:01:54]} 11. Nxe4 {[%clk 0:02:03]}  Qxe4 {[%clk 0:01:55]} 12. O-O {[%clk 0:01:59]}  O-O {[%clk 0:01:41]} 13. c3 {[%clk 0:01:57]}  d6 {[%clk 0:01:27]} 14. Bc2 {[%clk 0:01:55]}  Qh4 {[%clk 0:01:21]} 15. Bg5 {[%clk 0:01:51]}  Qh5 {[%clk 0:01:18]} 16. Bxe7 {[%clk 0:01:46]}  Be5 {[%clk 0:01:17]} 17. g3 {[%clk 0:01:37]}  Re8 {[%clk 0:01:17]} 18. Bh4 {[%clk 0:00:50]}  Bh3 {[%clk 0:01:12]} 19. Rfe1 {[%clk 0:00:47]}  d5 {[%clk 0:01:11]} 20. Bd1 {[%clk 0:00:45]}  Qf5 {[%clk 0:01:05]} 21. f4 {[%clk 0:00:42]}  Bc7 {[%clk 0:01:01]} 22. Bf3 {[%clk 0:00:38]}  Bb6+ {[%clk 0:00:59]} 23. Kh1 {[%clk 0:00:37]}  Bg4 {[%clk 0:00:49]} 24. Bg2 {[%clk 0:00:35]}  h5 {[%clk 0:00:32]} 25. a4 {[%clk 0:00:31]}  a5 {[%clk 0:00:30]} 26. Rxe8+ {[%clk 0:00:28]}  Rxe8 {[%clk 0:00:29]} 27. Re1 {[%clk 0:00:28]}  Re6 {[%clk 0:00:19]} 28. b4 {[%clk 0:00:15]}  Kg7 {[%clk 0:00:18]} 29. b5 {[%clk 0:00:12]}  cxb5 {[%clk 0:00:08]} 30. axb5 {[%clk 0:00:11]}  Rxe1+ {[%clk 0:00:06]} 31. Qxe1 {[%clk 0:00:10]}  a4 {[%clk 0:00:04]} 32. Qe5+ {[%clk 0:00:07]}  Qxe5 {[%clk 0:00:03]} 33. fxe5 {[%clk 0:00:08]}  Be6 {[%clk 0:00:02]} 34. Bg5 {[%clk 0:00:06]} 1-0


[Site "https://www.chess.com"]

[Event "Titled Tuesday Blitz February 22 Late 2022"]
[White "Domingo Nunez, Alejandro"]
[Black "Buchenau, Frank"]
[WhiteFideId "22245561"]
[BlackFideId "4604350"]
[WhiteElo "2215"]
[BlackElo "2193"]
[Result "0-1"]
[Round "04"]
[TimeControl "180+1"]
[Date "2022.02.23"]
[WhiteClock "0:00:01"]
[BlackClock "0:00:54"]

1. d4 {[%clk 0:03:00]}  e6 {[%clk 0:02:59]} 2. g3 {[%clk 0:02:59]}  Nf6 {[%clk 0:02:59]} 3. Bg2 {[%clk 0:03:00]}  c5 {[%clk 0:02:59]} 4. dxc5 {[%clk 0:02:55]}  Bxc5 {[%clk 0:02:58]} 5. Nf3 {[%clk 0:02:55]}  d5 {[%clk 0:02:57]} 6. O-O {[%clk 0:02:56]}  O-O {[%clk 0:02:57]} 7. c4 {[%clk 0:02:56]}  d4 {[%clk 0:02:55]} 8. a3 {[%clk 0:02:56]}  a5 {[%clk 0:02:55]} 9. Nbd2 {[%clk 0:02:56]}  Nc6 {[%clk 0:02:54]} 10. Ne1 {[%clk 0:02:56]}  e5 {[%clk 0:02:53]} 11. Nd3 {[%clk 0:02:55]}  Be7 {[%clk 0:02:48]} 12. Bxc6 {[%clk 0:02:55]}  bxc6 {[%clk 0:02:48]} 13. Nxe5 {[%clk 0:02:55]}  c5 {[%clk 0:02:45]} 14. Nc6 {[%clk 0:02:42]}  Qd6 {[%clk 0:02:44]} 15. Nxe7+ {[%clk 0:02:43]}  Qxe7 {[%clk 0:02:45]} 16. Re1 {[%clk 0:02:44]}  Bb7 {[%clk 0:02:35]} 17. Qb3 {[%clk 0:02:30]}  Rfe8 {[%clk 0:02:30]} 18. e4 {[%clk 0:02:18]}  dxe3 {[%clk 0:02:23]} 19. Rxe3 {[%clk 0:02:18]}  Qd7 {[%clk 0:02:19]} 20. Qb5 {[%clk 0:01:34]}  Rxe3 {[%clk 0:02:11]} 21. fxe3 {[%clk 0:01:30]}  Qc7 {[%clk 0:01:58]} 22. b4 {[%clk 0:01:22]}  axb4 {[%clk 0:01:55]} 23. Bb2 {[%clk 0:01:22]}  Ra5 {[%clk 0:01:53]} 24. Be5 {[%clk 0:01:15]}  Qxe5 {[%clk 0:01:41]} 25. Qxa5 {[%clk 0:00:59]}  Qxa1+ {[%clk 0:01:38]} 26. Kf2 {[%clk 0:00:59]}  Ng4+ {[%clk 0:01:37]} 27. Ke2 {[%clk 0:00:59]}  h5 {[%clk 0:01:24]} 28. Qb5 {[%clk 0:00:32]}  Bh1 {[%clk 0:01:18]} 29. axb4 {[%clk 0:00:21]}  Qe5 {[%clk 0:01:13]} 30. Nf1 {[%clk 0:00:07]}  Qf5 {[%clk 0:01:08]} 31. Qb8+ {[%clk 0:00:06]}  Kh7 {[%clk 0:01:07]} 32. Nd2 {[%clk 0:00:02]}  Qf2+ {[%clk 0:01:06]} 33. Kd3 {[%clk 0:00:02]}  Qxe3+ {[%clk 0:01:05]} 34. Kc2 {[%clk 0:00:03]}  Be4+ {[%clk 0:01:04]} 35. Kc1 {[%clk 0:00:03]}  Qc3+ {[%clk 0:01:03]} 36. Kd1 {[%clk 0:00:03]}  Nf2+ {[%clk 0:01:01]} 37. Ke2 {[%clk 0:00:03]}  Qf6 {[%clk 0:00:56]} 38. Qd8 {[%clk 0:00:01]}  Bd3+ {[%clk 0:00:54]} 0-1


[Site "https://www.chess.com"]

[Event "Titled Tuesday Blitz February 22 Late 2022"]
[White "Dounis, Alexandros"]
[Black "Wu, Christopher"]
[WhiteFideId "4213238"]
[BlackFideId "2040875"]
[WhiteElo "2195"]
[BlackElo "2635"]
[Result "0-1"]
[Round "04"]
[TimeControl "180+1"]
[Date "2022.02.23"]
[WhiteClock "0:00:07"]
[BlackClock "0:00:20"]

1. Nf3 {[%clk 0:03:00]}  c5 {[%clk 0:02:59]} 2. e4 {[%clk 0:02:59]}  d5 {[%clk 0:03:00]} 3. exd5 {[%clk 0:02:57]}  Qxd5 {[%clk 0:02:59]} 4. Nc3 {[%clk 0:02:47]}  Qd8 {[%clk 0:02:58]} 5. Bc4 {[%clk 0:02:37]}  Nc6 {[%clk 0:02:54]} 6. d3 {[%clk 0:02:31]}  Nf6 {[%clk 0:02:54]} 7. Ng5 {[%clk 0:02:17]}  e6 {[%clk 0:02:52]} 8. O-O {[%clk 0:02:16]}  Be7 {[%clk 0:02:50]} 9. Re1 {[%clk 0:02:11]}  O-O {[%clk 0:02:47]} 10. Nge4 {[%clk 0:02:04]}  a6 {[%clk 0:02:44]} 11. a3 {[%clk 0:01:58]}  b5 {[%clk 0:02:43]} 12. Ba2 {[%clk 0:01:58]}  Bb7 {[%clk 0:02:42]} 13. Be3 {[%clk 0:01:39]}  Nd4 {[%clk 0:02:40]} 14. Nxf6+ {[%clk 0:01:30]}  Bxf6 {[%clk 0:02:39]} 15. Ne4 {[%clk 0:01:30]}  Rc8 {[%clk 0:02:20]} 16. c3 {[%clk 0:01:26]}  Nf5 {[%clk 0:01:52]} 17. Bxc5 {[%clk 0:01:22]}  Re8 {[%clk 0:01:51]} 18. Be3 {[%clk 0:01:06]}  Be5 {[%clk 0:01:40]} 19. Ng3 {[%clk 0:01:02]}  Nh4 {[%clk 0:01:28]} 20. f3 {[%clk 0:00:54]}  Qf6 {[%clk 0:01:17]} 21. Bf2 {[%clk 0:00:43]}  Bb8 {[%clk 0:01:06]} 22. Ne4 {[%clk 0:00:31]}  Qh6 {[%clk 0:00:56]} 23. Qd2 {[%clk 0:00:22]}  Bxh2+ {[%clk 0:00:38]} 24. Kf1 {[%clk 0:00:18]}  Bf4 {[%clk 0:00:34]} 25. Be3 {[%clk 0:00:17]}  Ng6 {[%clk 0:00:28]} 26. Nf2 {[%clk 0:00:15]}  Red8 {[%clk 0:00:23]} 27. d4 {[%clk 0:00:14]}  Qh4 {[%clk 0:00:20]} 28. Nh3 {[%clk 0:00:13]}  Bg3 {[%clk 0:00:19]} 29. Bf2 {[%clk 0:00:13]}  Bxf3 {[%clk 0:00:19]} 30. Qg5 {[%clk 0:00:10]}  Bxf2 {[%clk 0:00:17]} 31. Qxh4 {[%clk 0:00:07]}  Bxh4 {[%clk 0:00:17]} 32. gxf3 {[%clk 0:00:07]}  Bxe1 {[%clk 0:00:17]} 33. Rxe1 {[%clk 0:00:06]}  h6 {[%clk 0:00:17]} 34. Re4 {[%clk 0:00:06]}  Kf8 {[%clk 0:00:17]} 35. Nf2 {[%clk 0:00:06]}  Ne7 {[%clk 0:00:16]} 36. Nd3 {[%clk 0:00:06]}  Nf5 {[%clk 0:00:16]} 37. Nc5 {[%clk 0:00:06]}  Rc6 {[%clk 0:00:15]} 38. Ke2 {[%clk 0:00:04]}  Nd6 {[%clk 0:00:15]} 39. Re5 {[%clk 0:00:04]}  Nc4 {[%clk 0:00:15]} 40. Bxc4 {[%clk 0:00:03]}  bxc4 {[%clk 0:00:16]} 41. Kd2 {[%clk 0:00:03]}  Rd5 {[%clk 0:00:16]} 42. Rxd5 {[%clk 0:00:03]}  exd5 {[%clk 0:00:16]} 43. Ke3 {[%clk 0:00:03]}  g5 {[%clk 0:00:17]} 44. Na4 {[%clk 0:00:03]}  h5 {[%clk 0:00:16]} 45. f4 {[%clk 0:00:03]}  f6 {[%clk 0:00:15]} 46. Kf2 {[%clk 0:00:04]}  h4 {[%clk 0:00:16]} 47. Kg2 {[%clk 0:00:03]}  g4 {[%clk 0:00:16]} 48. b4 {[%clk 0:00:04]}  cxb3 {[%clk 0:00:16]} 49. Nb2 {[%clk 0:00:04]}  Rxc3 {[%clk 0:00:16]} 50. Nd1 {[%clk 0:00:04]}  Rc2+ {[%clk 0:00:17]} 51. Kf1 {[%clk 0:00:04]}  Rc1 {[%clk 0:00:18]} 52. Ke2 {[%clk 0:00:04]}  Rxd1 {[%clk 0:00:18]} 53. f5 {[%clk 0:00:04]}  h3 {[%clk 0:00:19]} 54. Kxd1 {[%clk 0:00:04]}  h2 {[%clk 0:00:19]} 55. Kd2 {[%clk 0:00:05]}  h1=Q {[%clk 0:00:19]} 56. Kc3 {[%clk 0:00:05]}  Qb1 {[%clk 0:00:18]} 57. Kb4 {[%clk 0:00:06]}  Qc2 {[%clk 0:00:18]} 58. Ka4 {[%clk 0:00:07]}  Qc4+ {[%clk 0:00:19]} 59. Ka5 {[%clk 0:00:07]}  Qb5# {[%clk 0:00:20]} 0-1


[Site "https://www.chess.com"]